fUSD/lending_fUSD_20250611
["ID","MTS","AMOUNT","RATE_DAILY","PERIOD"]
[365418008,1749660662610,-490.0,0.00019835,2]
[365418009,1749660662620,-490.0,0.00019835,2]
[365418010,1749660662630,-615.91845147,0.00019835,2]
[365418011,1749660662641,-490.0,0.00019835,2]
[365418012,1749660662651,-443.8121491,0.00019835,2]
[365418013,1749660662661,-490.0,0.00019835,2]
[365418014,1749660662670,-490.0,0.00019835,2]
[365418015,1749660662680,-490.0,0.00019835,2]
[365418016,1749660662689,-490.0,0.00019835,2]
[365418017,1749660662699,-490.0,0.00019835,2]
[365418018,1749660662708,-490.0,0.00019835,2]
[365418019,1749660662719,-490.0,0.00019835,2]
[365418020,1749660662729,-466.38535543,0.00019835,2]
[365418021,1749660662738,-490.0,0.00019835,2]
[365418022,1749660662747,-383.6766769,0.00019835,2]
[365418023,1749660662756,-578.94484357,0.00019835,2]
[365418024,1749660662765,-490.0,0.00019835,2]
[365418025,1749660662774,-490.0,0.00019835,2]
[365418026,1749660662783,-336.4837896,0.00019835,2]
[365418027,1749660662792,-490.0,0.00019835,2]
[365418028,1749660662801,-567.39,0.00019835,2]
[365418029,1749660662810,-490.0,0.00019835,2]
[365418030,1749660662819,-490.0,0.00019835,2]
[365418031,1749660662828,-490.0,0.00019835,2]
[365418032,1749660662837,-490.0,0.00019835,2]
[365418033,1749660662846,-490.0,0.00019835,2]
[365418034,1749660662856,-490.0,0.00019835,2]
[365418035,1749660662865,-490.0,0.00019835,2]
[365418036,1749660662875,-490.0,0.00019835,2]
[365418037,1749660662884,-501.07,0.00019835,2]
[365418038,1749660662893,-490.0,0.00019835,2]
[365418039,1749660662903,-552.61,0.00019835,2]
[365418040,1749660662912,-490.0,0.00019835,2]
[365418041,1749660662922,-490.0,0.00019835,2]
[365418042,1749660662989,-490.0,0.00019835,2]
[365418043,1749660662998,-490.0,0.00019835,2]
[365418044,1749660663007,-490.0,0.00019835,2]
[365418045,1749660663017,-490.0,0.00019835,2]
[365418046,1749660663027,-490.0,0.00019835,2]
[365418047,1749660663036,-490.0,0.00019835,2]
[365418048,1749660663045,-490.0,0.00019835,2]
[365418049,1749660663055,-787.58,0.00019835,2]
[365418050,1749660663065,-490.0,0.00019835,2]
[365418051,1749660663074,-490.0,0.00019835,2]
[365418052,1749660663085,-410.0,0.00019835,2]
[365418053,1749660663095,-490.0,0.00019835,2]
[365418054,1749660663104,-490.0,0.00019835,2]
[365418055,1749660663114,-490.0,0.00019835,2]
[365418056,1749660663123,-600.66,0.00019835,2]
[365418057,1749660663133,-557.76185313,0.00019835,2]
[365418058,1749660663143,-490.0,0.00019835,2]
[365418059,1749660663152,-490.0,0.00019835,2]
[365418060,1749660663163,-490.0,0.00019835,2]
[365418061,1749660663172,-490.0,0.00019835,2]
[365418062,1749660663183,-559.83,0.00019835,2]
[365418063,1749660663192,-490.0,0.00019835,2]
[365418064,1749660663201,-490.0,0.00019835,2]
[365418065,1749660663211,-490.0,0.00019835,2]
[365418066,1749660663221,-490.0,0.00019835,2]
[365418067,1749660663232,-490.0,0.00019835,2]
[365418068,1749660663243,-490.0,0.00019835,2]
[365418069,1749660663253,-490.0,0.00019835,2]
[365418070,1749660663263,-532.47,0.00019835,2]
[365418071,1749660663274,-490.0,0.00019835,2]
[365418072,1749660663284,-490.0,0.00019835,2]
[365418073,1749660663297,-490.0,0.00019835,2]
[365418074,1749660663308,-490.0,0.00019835,2]
[365418075,1749660663318,-880.05,0.00019835,2]
[365418076,1749660663327,-490.0,0.00019835,2]
[365418077,1749660663339,-490.0,0.00019835,2]
[365418078,1749660663348,-490.0,0.00019835,2]
[365418079,1749660663358,-490.0,0.00019835,2]
[365418080,1749660663371,-795.36,0.00019835,2]
[365418081,1749660663382,-547.48,0.00019835,2]
[365418082,1749660663391,-553.1,0.00019835,2]
[365418083,1749660663401,-490.0,0.00019835,2]
[365418084,1749660663411,-490.0,0.00019835,2]
[365418085,1749660663421,-490.0,0.00019835,2]
[365418086,1749660663431,-490.0,0.00019835,2]
[365418087,1749660663440,-1017.09,0.00019835,2]
[365418088,1749660663450,-706.31,0.00019835,2]
[365418089,1749660663459,-490.0,0.00019835,2]
[365418090,1749660663469,-490.0,0.00019835,2]
[365418091,1749660663481,-490.0,0.00019835,2]
[365418092,1749660663491,-490.0,0.00019835,2]
[365418093,1749660663500,-504.65,0.00019835,2]
[365418094,1749660663510,-490.0,0.00019835,2]
[365418095,1749660663519,-490.0,0.00019835,2]
[365418096,1749660663529,-490.0,0.00019835,2]
[365418097,1749660663538,-490.0,0.00019835,2]
[365418098,1749660663548,-490.0,0.00019835,2]
[365418099,1749660663557,-490.0,0.00019835,2]
[365418100,1749660663567,-1001.14,0.00019835,2]
[365418101,1749660663579,-1022.13,0.00019835,2]
[365418102,1749660663588,-781.4,0.00019835,2]
[365418103,1749660663598,-490.0,0.00019835,2]
[365418104,1749660663608,-576.38,0.00019835,2]
[365418105,1749660663617,-490.0,0.00019835,2]
[365418106,1749660663627,-651.77,0.00019835,2]
[365418107,1749660663637,-490.0,0.00019835,2]
[365418108,1749660663646,-490.0,0.00019835,2]
[365418109,1749660663656,-738.41,0.00019835,2]
[365418110,1749660663666,-529.38,0.00019835,2]
[365418111,1749660663677,-490.0,0.00019835,2]
[365418112,1749660663687,-490.0,0.00019835,2]
[365418113,1749660663699,-490.0,0.00019835,2]
[365418114,1749660663714,-875.41,0.00019835,2]
[365418115,1749660663726,-490.0,0.00019835,2]
[365418116,1749660663735,-490.0,0.00019835,2]
[365418117,1749660663745,-490.0,0.00019835,2]
[365418118,1749660663754,-462.60224591,0.00019835,2]
[365418119,1749660663764,-490.0,0.00019835,2]
[365418120,1749660663773,-496.29,0.00019835,2]
[365418121,1749660663783,-490.0,0.00019835,2]
[365418122,1749660663797,-490.0,0.00019835,2]
[365418123,1749660663806,-526.23,0.00019835,2]
[365418124,1749660663816,-490.0,0.00019835,2]
[365418125,1749660663826,-490.0,0.00019835,2]
[365418126,1749660663835,-313.09,0.00019835,2]
[365418127,1749660663844,-610.84,0.00019835,2]
[365418128,1749660663853,-490.0,0.00019835,2]
[365418129,1749660663862,-490.0,0.00019835,2]
[365418130,1749660663872,-542.93,0.00019835,2]
[365418131,1749660663881,-490.0,0.00019835,2]
[365418132,1749660663891,-1076.9,0.00019835,2]
[365418133,1749660663901,-490.0,0.00019835,2]
[365418134,1749660663910,-490.0,0.00019835,2]
[365418135,1749660663919,-490.0,0.00019835,2]
[365418136,1749660663928,-841.76,0.00019835,2]
[365418137,1749660663938,-490.0,0.00019835,2]
[365418138,1749660663947,-490.0,0.00019835,2]
[365418139,1749660663957,-490.0,0.00019835,2]
[365418140,1749660663967,-490.0,0.00019835,2]
[365418141,1749660663976,-490.0,0.00019835,2]
[365418142,1749660663986,-490.0,0.00019835,2]
[365418143,1749660663997,-490.0,0.00019835,2]
[365418144,1749660664006,-490.0,0.00019835,2]
[365418145,1749660664015,-610.24,0.00019835,2]
[365418146,1749660664025,-490.0,0.00019835,2]
[365418147,1749660664034,-595.82,0.00019835,2]
[365418148,1749660664043,-490.0,0.00019835,2]
[365418149,1749660664053,-490.0,0.00019835,2]
[365418150,1749660664062,-490.0,0.00019835,2]
[365418151,1749660664072,-544.38919651,0.00019835,2]
[365418152,1749660664081,-490.0,0.00019835,2]
[365418153,1749660664090,-490.0,0.00019835,2]
[365418154,1749660664100,-490.0,0.00019835,2]
[365418155,1749660664110,-1368.39,0.00019835,2]
[365418156,1749660664119,-490.0,0.00019835,2]
[365418157,1749660664128,-564.27,0.00019835,2]
[365418158,1749660664138,-589.3,0.00019835,2]
[365418159,1749660664147,-490.0,0.00019835,2]
[365418160,1749660664156,-490.0,0.00019835,2]
[365418161,1749660664166,-490.0,0.00019835,2]
[365418162,1749660664176,-490.0,0.00019835,2]
[365418163,1749660664185,-703.44,0.00019835,2]
[365418164,1749660664194,-490.0,0.00019835,2]
[365418165,1749660664203,-501.05,0.00019835,2]
[365418166,1749660664212,-493.75,0.00019835,2]
[365418167,1749660664222,-490.0,0.00019835,2]
[365418168,1749660664234,-490.0,0.00019835,2]
[365418169,1749660664244,-490.0,0.00019835,2]
[365418170,1749660664253,-605.8,0.00019835,2]
[365418171,1749660664263,-485.61642777,0.00019835,2]
[365418172,1749660664272,-451.26,0.00019835,2]
[365418173,1749660664282,-1108.7,0.00019835,2]
[365418174,1749660664292,-490.0,0.00019835,2]
[365418175,1749660664304,-490.0,0.00019835,2]
[365418176,1749660664314,-250.0,0.00019835,2]
[365418177,1749660664324,-490.0,0.00019835,2]
[365418178,1749660664334,-490.0,0.00019835,2]
[365418179,1749660664344,-490.0,0.00019835,2]
[365418180,1749660664354,-490.0,0.00019835,2]
[365418181,1749660664363,-490.0,0.00019835,2]
[365418182,1749660664372,-587.47,0.00019835,2]
[365418183,1749660664384,-1376.336,0.00019835,2]
[365418184,1749660664395,-163.412,0.00019835,2]
[365418185,1749660664404,-490.0,0.00019835,2]
[365418186,1749660664414,-226.62,0.00019835,2]
[365418187,1749660664423,-490.0,0.00019835,2]
[365418188,1749660664433,-1252.39,0.00019835,2]
[365418189,1749660664443,-490.0,0.00019835,2]
[365418190,1749660664452,-2427.27,0.00019835,2]
[365418191,1749660664462,-453.95289679,0.00019835,2]
[365418192,1749660664472,-490.46,0.00019835,2]
[365418193,1749660664483,-1069.63,0.00019835,2]
[365418194,1749660664492,-490.0,0.00019835,2]
[365418195,1749660664502,-490.0,0.00019835,2]
[365418196,1749660664511,-1490.84,0.00019835,2]
[365418197,1749660664521,-490.0,0.00019835,2]
[365418198,1749660664530,-490.0,0.00019835,2]
[365418199,1749660664539,-1929.27,0.00019835,2]
[365418200,1749660664549,-490.0,0.00019835,2]
[365418201,1749660664558,-903.73,0.00019835,2]
[365418202,1749660664567,-2370.05,0.00019835,2]
[365418203,1749660664577,-751.31,0.00019835,2]
[365418204,1749660664588,-490.0,0.00019835,2]
[365418205,1749660664597,-4168.24,0.00019835,2]
[365418206,1749660664607,-490.0,0.00019835,2]
[365418207,1749660664616,-617.74,0.00019835,2]
[365418208,1749660664625,-490.0,0.00019835,2]
[365418209,1749660664635,-2151.44,0.00019835,2]
[365418210,1749660664644,-530.23,0.00019835,2]
[365418211,1749660664653,-630.67,0.00019835,2]
[365418212,1749660664662,-490.0,0.00019835,2]
[365418213,1749660664672,-821.66,0.00019835,2]
[365418214,1749660664682,-3270.35,0.00019835,2]
[365418215,1749660664692,-511.03,0.00019835,2]
[365418216,1749660664702,-509.78,0.00019835,2]
[365418217,1749660664711,-490.0,0.00019835,2]
[365418218,1749660664721,-1000.0,0.00019835,2]
[365418219,1749660664732,-490.0,0.00019835,2]
[365418220,1749660664742,-517.59,0.00019835,2]
[365418221,1749660664752,-6106.1,0.00019835,2]
[365418222,1749660664762,-490.0,0.00019835,2]
[365418223,1749660664771,-919.46,0.00019835,2]
[365418224,1749660664780,-642.65,0.00019835,2]
[365418225,1749660664791,-490.0,0.00019835,2]
[365418226,1749660664800,-490.0,0.00019835,2]
[365418227,1749660664809,-503.54,0.00019835,2]
[365418228,1749660664818,-1003.24,0.00019835,2]
[365418229,1749660664828,-490.0,0.00019835,2]
[365418230,1749660664838,-521.67,0.00019835,2]
[365418231,1749660664847,-589.8,0.00019835,2]
[365418232,1749660664856,-1345.03,0.00019835,2]
[365418233,1749660664866,-855.48,0.00019835,2]
[365418234,1749660664875,-834.67,0.00019835,2]
[365418235,1749660664884,-490.0,0.00019835,2]
[365418236,1749660664894,-490.0,0.00019835,2]
[365418237,1749660664903,-490.0,0.00019835,2]
[365418238,1749660664913,-790.05,0.00019835,2]
[365418239,1749660664922,-947.83,0.00019835,2]
[365418240,1749660664931,-512.7,0.00019835,2]
[365418241,1749660664941,-908.62,0.00019835,2]
[365418242,1749660664951,-764.91,0.00019835,2]
[365418243,1749660664960,-490.0,0.00019835,2]
[365418244,1749660664970,-490.0,0.00019835,2]
[365418245,1749660664982,-490.0,0.00019835,2]
[365418246,1749660664991,-5930.08,0.00019835,2]
[365418247,1749660665001,-1579.69,0.00019835,2]
[365418248,1749660665011,-2917.28,0.00019835,2]
[365418249,1749660665020,-575.18,0.00019835,2]
[365418250,1749660665029,-380.56305665,0.00019835,2]
[365418251,1749660665039,-1193.27,0.00019835,2]
[365418252,1749660665048,-611.34,0.00019835,2]
[365418253,1749660665058,-490.89,0.00019835,2]
[365418254,1749660665067,-490.0,0.00019835,2]
[365418255,1749660665076,-490.0,0.00019835,2]
[365418256,1749660665086,-549.23,0.00019835,2]
[365418257,1749660665095,-490.0,0.00019835,2]
[365418258,1749660665105,-611.95,0.00019835,2]
[365418259,1749660665114,-936.29,0.00019835,2]
[365418260,1749660665123,-496.94,0.00019835,2]
[365418261,1749660665133,-490.0,0.00019835,2]
[365418262,1749660665143,-442.97,0.00019835,2]
[365418263,1749660665152,-1060.78,0.00019835,2]
[365418264,1749660665162,-662.42,0.00019835,2]
[365418265,1749660665171,-1513.94,0.00019835,2]
[365418266,1749660665181,-3883.39,0.00019835,2]
[365418267,1749660665190,-995.94,0.00019835,2]
[365418268,1749660665199,-725.66,0.00019835,2]
[365418269,1749660665209,-768.41,0.00019835,2]
[365418270,1749660665218,-490.0,0.00019835,2]
[365418271,1749660665231,-490.0,0.00019835,2]
[365418272,1749660665241,-772.21,0.00019835,2]
[365418273,1749660665250,-490.0,0.00019835,2]
[365418274,1749660665260,-490.0,0.00019835,2]
[365418275,1749660665270,-490.0,0.00019835,2]
[365418276,1749660665280,-662.53,0.00019835,2]
[365418277,1749660665289,-490.0,0.00019835,2]
[365418278,1749660665300,-1697.68,0.00019835,2]
[365418279,1749660665310,-537.47,0.00019835,2]
[365418280,1749660665320,-490.0,0.00019835,2]
[365418281,1749660665329,-969.69,0.00019835,2]
[365418282,1749660665341,-490.0,0.00019835,2]
[365418283,1749660665351,-601.27,0.00019835,2]
[365418284,1749660665361,-869.0,0.00019835,2]
[365418285,1749660665371,-490.0,0.00019835,2]
[365418286,1749660665385,-490.0,0.00019835,2]
[365418287,1749660665395,-1413.48,0.00019835,2]
[365418288,1749660665406,-839.04,0.00019835,2]
[365418289,1749660665416,-490.0,0.00019835,2]
[365418290,1749660665427,-490.0,0.00019835,2]
[365418291,1749660665438,-1879.27,0.00019835,2]
[365418292,1749660665448,-490.0,0.00019835,2]
[365418293,1749660665458,-490.0,0.00019835,2]
[365418294,1749660665468,-1505.54,0.00019835,2]
[365418295,1749660665481,-490.0,0.00019835,2]
[365418296,1749660665491,-604.78,0.00019835,2]
[365418297,1749660665501,-626.47,0.00019835,2]
[365418298,1749660665511,-490.0,0.00019835,2]
[365418299,1749660665522,-745.95,0.00019835,2]
[365418300,1749660665532,-490.0,0.00019835,2]
[365418301,1749660665543,-1372.55,0.00019835,2]
[365418302,1749660665552,-490.0,0.00019835,2]
[365418303,1749660665563,-490.0,0.00019835,2]
[365418304,1749660665572,-562.59,0.00019835,2]
[365418305,1749660665582,-490.0,0.00019835,2]
[365418306,1749660665592,-490.0,0.00019835,2]
[365418307,1749660665602,-513.3,0.00019835,2]
[365418308,1749660665612,-490.0,0.00019835,2]
[365418309,1749660665622,-490.0,0.00019835,2]
[365418310,1749660665634,-1145.54,0.00019835,2]
[365418311,1749660665644,-762.07,0.00019835,2]
[365418312,1749660665654,-674.02,0.00019835,2]
[365418313,1749660665663,-490.0,0.00019835,2]
[365418314,1749660665673,-490.0,0.00019835,2]
[365418315,1749660665682,-1474.06,0.00019835,2]
[365418316,1749660665692,-695.03,0.00019835,2]
[365418317,1749660665702,-490.0,0.00019835,2]
[365418318,1749660665711,-490.0,0.00019835,2]
[365418319,1749660665721,-6389.33,0.00019835,2]
[365418320,1749660665734,-490.0,0.00019835,2]
[365418321,1749660665744,-657.39,0.00019835,2]
[365418322,1749660665755,-490.0,0.00019835,2]
[365418323,1749660665765,-490.0,0.00019835,2]
[365418324,1749660665775,-534.0,0.00019835,2]
[365418325,1749660665785,-490.0,0.00019835,2]
[365418326,1749660665795,-490.0,0.00019835,2]
[365418327,1749660665805,-490.0,0.00019835,2]
[365418328,1749660665815,-494.95,0.00019835,2]
[365418329,1749660665824,-490.0,0.00019835,2]
[365418330,1749660665835,-490.0,0.00019835,2]
[365418331,1749660665845,-490.0,0.00019835,2]
[365418332,1749660665857,-805.04,0.00019835,2]
[365418333,1749660665866,-626.98,0.00019835,2]
[365418334,1749660665876,-511.3,0.00019835,2]
[365418335,1749660665886,-579.91,0.00019835,2]
[365418336,1749660665895,-490.0,0.00019835,2]
[365418337,1749660665905,-490.0,0.00019835,2]
[365418338,1749660665914,-1490.41,0.00019835,2]
[365418339,1749660665923,-739.05,0.00019835,2]
[365418340,1749660665933,-766.16,0.00019835,2]
[365418341,1749660665942,-636.67,0.00019835,2]
[365418342,1749660665952,-1647.2,0.00019835,2]
[365418343,1749660665962,-709.31,0.00019835,2]
[365418344,1749660665972,-503.8,0.00019835,2]
[365418345,1749660665983,-785.6,0.00019835,2]
[365418346,1749660665992,-490.0,0.00019835,2]
[365418347,1749660666003,-490.0,0.00019835,2]
[365418348,1749660666012,-490.0,0.00019835,2]
[365418349,1749660666023,-4761.01,0.00019835,2]
[365418350,1749660666032,-490.0,0.00019835,2]
[365418351,1749660666042,-490.0,0.00019835,2]
[365418352,1749660666051,-877.3,0.00019835,2]
[365418353,1749660666062,-490.0,0.00019835,2]
[365418354,1749660666072,-490.0,0.00019835,2]
[365418355,1749660666082,-490.0,0.00019835,2]
[365418356,1749660666092,-2745.15,0.00019835,2]
[365418357,1749660666102,-490.0,0.00019835,2]
[365418358,1749660666112,-602.15,0.00019835,2]
[365418359,1749660666122,-490.0,0.00019835,2]
[365418360,1749660666131,-490.0,0.00019835,2]
[365418361,1749660666141,-490.0,0.00019835,2]
[365418362,1749660666151,-490.0,0.00019835,2]
[365418363,1749660666160,-490.0,0.00019835,2]
[365418364,1749660666170,-1679.04,0.00019835,2]
[365418365,1749660666179,-576.77,0.00019835,2]
[365418366,1749660666189,-490.0,0.00019835,2]
[365418367,1749660666198,-1233.32,0.00019835,2]
[365418368,1749660666208,-490.0,0.00019835,2]
[365418369,1749660666218,-490.0,0.00019835,2]
[365418370,1749660666229,-652.29,0.00019835,2]
[365418371,1749660666239,-490.0,0.00019835,2]
[365418372,1749660666248,-490.0,0.00019835,2]
[365418373,1749660666257,-490.0,0.00019835,2]
[365418374,1749660666268,-952.05,0.00019835,2]
[365418375,1749660666277,-736.69,0.00019835,2]
[365418376,1749660666287,-490.0,0.00019835,2]
[365418377,1749660666299,-1039.64,0.00019835,2]
[365418378,1749660666310,-490.0,0.00019835,2]
[365418379,1749660666320,-2279.09,0.00019835,2]
[365418380,1749660666330,-490.0,0.00019835,2]
[365418381,1749660666341,-738.18,0.00019835,2]
[365418382,1749660666351,-490.0,0.00019835,2]
[365418383,1749660666361,-490.0,0.00019835,2]
[365418384,1749660666372,-490.0,0.00019835,2]
[365418385,1749660666383,-789.34,0.00019835,2]
[365418386,1749660666392,-490.0,0.00019835,2]
[365418387,1749660666402,-490.0,0.00019835,2]
[365418388,1749660666412,-490.0,0.00019835,2]
[365418389,1749660666422,-490.0,0.00019835,2]
[365418390,1749660666431,-490.0,0.00019835,2]
[365418391,1749660666441,-490.0,0.00019835,2]
[365418392,1749660666451,-811.23,0.00019835,2]
[365418393,1749660666461,-490.0,0.00019835,2]
[365418394,1749660666471,-871.69,0.00019835,2]
[365418395,1749660666482,-490.0,0.00019835,2]
[365418396,1749660666492,-490.0,0.00019835,2]
[365418397,1749660666502,-722.34,0.00019835,2]
[365418398,1749660666512,-1148.06,0.00019835,2]
[365418399,1749660666522,-490.0,0.00019835,2]
[365418400,1749660666532,-581.4,0.00019835,2]
[365418401,1749660666542,-490.0,0.00019835,2]
[365418402,1749660666552,-490.0,0.00019835,2]
[365418403,1749660666563,-490.0,0.00019835,2]
[365418404,1749660666573,-500.0,0.0001984,2]
[365418405,1749660666583,-211.0,0.0001989,2]
[365418406,1749660666593,-591.85709222,0.000199,2]
[365418407,1749660666604,-237.76067231,0.000199,2]
[365418408,1749660666615,-162.03089182,0.000199,2]
[365418409,1749660666624,-250.0,0.00019951,2]
[365418410,1749660666635,-150.0,0.0001997,2]
[365418411,1749660666644,-150.0,0.0001997,2]
[365418412,1749660666655,-150.0,0.0001997,2]
[365418413,1749660666665,-150.0,0.0001997,2]
[365418414,1749660666675,-150.0,0.0001997,2]
[365418415,1749660666684,-229.09263784,0.0001997,2]
[365418416,1749660666694,-500.0,0.0001997,2]
[365418417,1749660666703,-150.0,0.0001997,2]
[365418418,1749660666714,-500.0,0.0001997,2]
[365418419,1749660666726,-298.0051257,0.0001997,2]
[365418420,1749660666735,-500.0,0.0001997,2]
[365418421,1749660666745,-500.0,0.00019973,2]
[365418422,1749660666755,-500.0,0.00019973,2]
[365418423,1749660666765,-500.0,0.00019973,2]
[365418424,1749660666775,-500.0,0.00019973,2]
[365418425,1749660666785,-500.0,0.00019973,2]
[365418426,1749660666795,-487.26,0.00019976,2]
[365418427,1749660666805,-500.0,0.00019988,2]
[365418428,1749660666815,-2006.11,0.00019989,2]
[365418429,1749660666825,-4174.97,0.00019989,2]
[365418430,1749660666834,-5953.58286027,0.0001999,2]
[365418431,1749660667875,-347.9600001,0.00019671,2]
[365418432,1749660667948,-490.0,0.00019178,2]
[365418433,1749660667957,-490.0,0.00019178,2]
[365418434,1749660667967,-142.0399999,0.00019671,2]
[365418435,1749660667979,-1840.41,0.00019671,2]
[365418436,1749660667987,-490.0,0.00019835,2]
[365418437,1749660667997,-1840.41,0.00019835,2]
[365418438,1749660668007,-500.0,0.0001997,2]
[365418439,1749660668016,-14056.37536083,0.0001999,2]
[365418440,1749660668025,-163797.40541512,0.0001999,2]
[365418441,1749660668034,-500.0,0.00019995,2]
[365418442,1749660668044,-2824.4958423,0.00019996,2]
[365418443,1749660668053,-74097.90208754,0.00019996,2]
[365418444,1749660668065,-428.46278947,0.00019996,2]
[365418445,1749660668527,-490.0,0.00019178,2]
[365418446,1749660668536,-10.0,0.00019178,2]
[365418447,1749660668861,-480.0,0.00019178,2]
[365418448,1749660668871,-490.0,0.00019178,2]
[365418449,1749660668880,-480.0,0.00019178,2]
[365418450,1749660668888,-490.0,0.00019178,2]
[365418451,1749660668898,-490.0,0.00019342,2]
[365418452,1749660668907,-4.85388373,0.00019342,2]
[365418453,1749660668922,-490.0,0.00019178,2]
[365418454,1749660668931,-449.87600027,0.00019342,2]
[365418455,1749660668942,-35.270116,0.00019342,2]
[365418456,1749660668955,-386.25,0.00019506,2]
[365418457,1749660668965,-3490.63346279,0.00019996,2]
[365418458,1749660668975,-6273.9420848,0.00019996,2]
[365418459,1749660668986,-47.76641692,0.00019997,2]
[365418460,1749660669001,-490.0,0.00019342,2]
[365418461,1749660669012,-504.85086301,0.00019997,2]
[365418462,1749660669024,-1453.49272007,0.00019997,2]
[365418463,1749660669033,-831.09946748,0.00019997,2]
[365418464,1749660747196,349.154994,0.00016438,2]
[365418465,1749660747502,349.154994,0.00016438,2]
[365418466,1749660747837,349.154994,0.00016438,2]
[365418467,1749660771053,326.658927,0.00016438,2]
[365418468,1749660771164,326.658927,0.00016438,2]
[365418469,1749660771221,326.658927,0.00016438,2]
[365418471,1749660900102,500.31978658,0.00024658,120]
[365418472,1749660923494,176.280314,0.00016438,2]
[365418473,1749661084537,250.15989329,0.00024658,120]
[365418474,1749661387849,317.441491,7.945e-05,2]
[365418476,1749661388918,395.4,0.00013699,2]
[365418477,1749661414991,1346.45,0.00015963,2]
[365418479,1749661491316,502.89178748,0.00024657,120]
[365418481,1749661635117,-188.87066961,0.00017781,2]
[365418482,1749661635140,-267.17,0.00017785,2]
[365418483,1749661635161,-671.87811756,0.00017806,2]
[365418484,1749661640122,-150.0,0.00017787,7]
[365418485,1749661640151,-328.12188244,0.00017806,2]
[365418486,1749661640180,-195.22222241,0.00017806,2]
[365418487,1749661640209,-1027.33,0.00017881,2]
[365418488,1749661640238,-164.24,0.00017881,2]
[365418489,1749661640267,-666.0,0.00017881,2]
[365418490,1749661640296,-250.0,0.00017881,2]
[365418491,1749661640326,-728.03,0.00017913,2]
[365418492,1749661640355,-248.78,0.00017966,2]
[365418493,1749661640394,-465.60117386,0.00018,4]
[365418494,1749661640429,-300.0,0.00018226,2]
[365418495,1749661640457,-300.0,0.00018226,2]
[365418496,1749661640484,-1346.45,0.00018227,2]
[365418497,1749661640515,-300.0,0.00018407,2]
[365418498,1749661640543,-303.05,0.00018407,2]
[365418499,1749661640571,-1200.0,0.00018407,2]
[365418500,1749661640599,-502.71,0.00018408,2]
[365418501,1749661640630,-130.79922396,0.00018408,2]
[365418502,1749661644096,-364.46077604,0.00018408,2]
[365418503,1749661644123,-500.66,0.00018408,2]
[365418504,1749661644150,-301.89,0.00018409,2]
[365418505,1749661644178,-117.78016114,0.00018413,2]
[365418516,1749661832329,-202.0,0.00017442,2]
[365418517,1749661832338,-270.0,0.00017442,2]
[365418518,1749661832347,-300.0,0.00017915,2]
[365418519,1749661832357,-202.0,0.00018388,3]
[365418520,1749661832367,-378.51983886,0.00018413,2]
[365418521,1749661832376,-507.08,0.00018413,2]